fUSD/lending_fUSD_20250916
["ID","MTS","AMOUNT","RATE_DAILY","PERIOD"]
[385787936,1758040266441,-400.0,0.0003041,6]
[385787937,1758040266450,-400.0,0.0003041,6]
[385787938,1758040266459,-400.0,0.0003041,6]
[385787939,1758040266468,-400.0,0.0003041,6]
[385787940,1758040266480,-400.0,0.0003041,6]
[385787941,1758040266489,-533.39,0.0003041,6]
[385787942,1758040266499,-400.0,0.0003041,6]
[385787943,1758040266508,-400.0,0.0003041,6]
[385787944,1758040266517,-400.0,0.0003041,6]
[385787945,1758040266527,-400.0,0.0003041,6]
[385787946,1758040266536,-400.0,0.0003041,6]
[385787947,1758040266545,-400.0,0.0003041,6]
[385787948,1758040266555,-400.0,0.0003041,6]
[385787949,1758040266564,-1108.26,0.0003041,6]
[385787950,1758040266573,-400.0,0.0003041,6]
[385787951,1758040266583,-400.0,0.0003041,6]
[385787952,1758040266593,-400.0,0.0003041,6]
[385787953,1758040266602,-400.0,0.0003041,6]
[385787954,1758040266611,-400.0,0.0003041,6]
[385787955,1758040266620,-400.0,0.0003041,6]
[385787956,1758040266630,-400.0,0.0003041,6]
[385787957,1758040266639,-400.0,0.0003041,6]
[385787958,1758040266649,-400.0,0.0003041,6]
[385787959,1758040266658,-404.49847285,0.0003041,6]
[385787960,1758040266668,-580.08,0.0003041,6]
[385787961,1758040266678,-400.0,0.0003041,6]
[385787962,1758040266687,-504.95,0.0003041,6]
[385787963,1758040266696,-400.0,0.0003041,6]
[385787964,1758040266706,-624.03,0.0003041,6]
[385787965,1758040266715,-400.0,0.0003041,6]
[385787966,1758040266725,-400.0,0.0003041,6]
[385787967,1758040266735,-400.0,0.0003041,6]
[385787968,1758040266744,-400.0,0.0003041,6]
[385787969,1758040266753,-400.0,0.0003041,6]
[385787970,1758040266763,-402.20238331,0.0003041,6]
[385787971,1758040266772,-700.34,0.0003041,6]
[385787972,1758040266782,-645.97,0.0003041,6]
[385787973,1758040266791,-502.06,0.0003041,6]
[385787974,1758040266801,-400.0,0.0003041,6]
[385787975,1758040266811,-669.05,0.0003041,6]
[385787976,1758040266821,-400.0,0.0003041,5]
[385787977,1758040266830,-400.0,0.0003041,6]
[385787978,1758040266840,-400.0,0.0003041,6]
[385787979,1758040266849,-400.0,0.0003041,6]
[385787980,1758040266955,-400.0,0.0003041,6]
[385787981,1758040266968,-400.0,0.0003041,6]
[385787982,1758040266979,-400.0,0.0003041,6]
[385787983,1758040266989,-400.0,0.0003041,6]
[385787984,1758040266998,-400.0,0.0003041,6]
[385787985,1758040267010,-400.0,0.0003041,6]
[385787986,1758040267019,-496.34,0.0003041,6]
[385787987,1758040267028,-400.0,0.0003041,6]
[385787988,1758040267039,-400.0,0.0003041,6]
[385787989,1758040267048,-400.0,0.0003041,6]
[385787990,1758040267057,-604.86,0.0003041,6]
[385787991,1758040267066,-401.99032952,0.0003041,6]
[385787992,1758040267076,-400.0,0.0003041,6]
[385787993,1758040267086,-490.49,0.0003041,6]
[385787994,1758040267095,-400.0,0.0003041,6]
[385787995,1758040267104,-400.0,0.0003041,6]
[385787996,1758040267113,-400.0,0.0003041,6]
[385787997,1758040267122,-400.0,0.0003041,6]
[385787998,1758040267131,-400.0,0.0003041,6]
[385787999,1758040267141,-493.07,0.0003041,6]
[385788000,1758040267150,-400.0,0.0003041,6]
[385788001,1758040267160,-400.0,0.0003041,6]
[385788002,1758040267169,-400.0,0.0003041,6]
[385788003,1758040267179,-713.11,0.0003041,6]
[385788004,1758040267188,-400.0,0.0003041,6]
[385788005,1758040267197,-400.0,0.0003041,6]
[385788006,1758040267206,-400.0,0.0003041,6]
[385788007,1758040267216,-400.0,0.0003041,6]
[385788008,1758040267226,-400.0,0.0003041,6]
[385788009,1758040267236,-400.0,0.0003041,6]
[385788010,1758040267245,-403.21013407,0.0003041,6]
[385788011,1758040267254,-400.0,0.0003041,6]
[385788012,1758040267263,-400.0,0.0003041,6]
[385788013,1758040267272,-162.02513918,0.0003041,6]
[385788014,1758040267282,-400.0,0.0003041,6]
[385788015,1758040267291,-400.0,0.0003041,6]
[385788016,1758040267300,-400.0,0.0003041,6]
[385788017,1758040267310,-400.0,0.0003041,6]
[385788018,1758040267319,-400.0,0.0003041,6]
[385788019,1758040267328,-400.0,0.0003041,6]
[385788020,1758040267337,-400.0,0.0003041,6]
[385788021,1758040267346,-409.62614682,0.0003041,6]
[385788022,1758040267355,-400.0,0.0003041,6]
[385788023,1758040267365,-400.0,0.0003041,6]
[385788024,1758040267374,-400.0,0.0003041,6]
[385788025,1758040267383,-400.0,0.0003041,6]
[385788026,1758040267392,-400.0,0.0003041,6]
[385788027,1758040267401,-603.81,0.0003041,6]
[385788028,1758040267411,-416.32,0.0003041,6]
[385788029,1758040267420,-530.94,0.0003041,6]
[385788030,1758040267430,-400.0,0.0003041,6]
[385788031,1758040267439,-400.0,0.0003041,6]
[385788032,1758040267448,-400.0,0.0003041,6]
[385788033,1758040267457,-400.0,0.0003041,6]
[385788034,1758040267467,-400.0,0.0003041,6]
[385788035,1758040267477,-400.0,0.0003041,6]
[385788036,1758040267487,-400.0,0.0003041,6]
[385788037,1758040267496,-400.0,0.0003041,6]
[385788038,1758040267505,-400.0,0.0003041,6]
[385788039,1758040267514,-400.0,0.0003041,6]
[385788040,1758040267523,-400.0,0.0003041,6]
[385788041,1758040267533,-400.0,0.0003041,6]
[385788042,1758040267542,-400.0,0.0003041,6]
[385788043,1758040267552,-402.00850005,0.0003041,6]
[385788044,1758040267561,-400.0,0.0003041,6]
[385788045,1758040267570,-400.0,0.0003041,6]
[385788046,1758040267580,-400.0,0.0003041,6]
[385788047,1758040267589,-400.0,0.0003041,6]
[385788048,1758040267598,-400.0,0.0003041,6]
[385788049,1758040267607,-400.0,0.0003041,6]
[385788050,1758040267617,-400.0,0.0003041,6]
[385788051,1758040267626,-400.0,0.0003041,6]
[385788052,1758040267636,-400.0,0.0003041,6]
[385788053,1758040267645,-400.0,0.0003041,6]
[385788054,1758040267654,-400.0,0.0003041,6]
[385788055,1758040267663,-400.0,0.0003041,6]
[385788056,1758040267672,-400.0,0.0003041,6]
[385788057,1758040267681,-400.0,0.0003041,6]
[385788058,1758040267690,-400.0,0.0003041,6]
[385788059,1758040267699,-400.0,0.0003041,6]
[385788060,1758040267708,-400.0,0.0003041,6]
[385788061,1758040267717,-542.3878559,0.0003041,6]
[385788062,1758040267728,-400.0,0.0003041,6]
[385788063,1758040267737,-400.0,0.0003041,6]
[385788064,1758040267747,-1806.09,0.0003041,6]
[385788065,1758040267756,-400.0,0.0003041,6]
[385788066,1758040267766,-400.0,0.0003041,6]
[385788067,1758040267776,-400.0,0.0003041,6]
[385788068,1758040267785,-658.18,0.0003041,6]
[385788069,1758040267795,-447.66,0.0003041,6]
[385788070,1758040267805,-401.13,0.0003041,6]
[385788071,1758040267815,-400.0,0.0003041,6]
[385788072,1758040267826,-400.0,0.0003041,6]
[385788073,1758040267836,-400.0,0.0003041,6]
[385788074,1758040267846,-400.0,0.0003041,6]
[385788075,1758040267856,-400.0,0.0003041,6]
[385788076,1758040267866,-504.41,0.0003041,6]
[385788077,1758040267875,-400.0,0.0003041,6]
[385788078,1758040267885,-400.0,0.0003041,6]
[385788079,1758040267895,-400.0,0.0003041,6]
[385788080,1758040267905,-517.56,0.0003041,6]
[385788081,1758040267915,-400.0,0.0003041,6]
[385788082,1758040267925,-428.17,0.0003041,6]
[385788083,1758040267935,-400.0,0.0003041,6]
[385788084,1758040267945,-401.61351598,0.0003041,6]
[385788085,1758040267955,-400.0,0.0003041,6]
[385788086,1758040267967,-400.0,0.0003041,6]
[385788087,1758040267977,-400.0,0.0003041,6]
[385788088,1758040267987,-400.0,0.0003041,6]
[385788089,1758040267996,-400.0,0.0003041,6]
[385788090,1758040268007,-400.0,0.0003041,6]
[385788091,1758040268016,-500.0,0.0003041,14]
[385788092,1758040268026,-614.37,0.0003041,6]
[385788093,1758040268036,-400.0,0.0003041,6]
[385788094,1758040268047,-400.0,0.0003041,6]
[385788095,1758040268056,-400.0,0.0003041,6]
[385788096,1758040268066,-401.65115857,0.0003041,6]
[385788097,1758040268076,-765.97,0.0003041,6]
[385788098,1758040268086,-400.0,0.0003041,6]
[385788099,1758040268096,-400.0,0.0003041,6]
[385788100,1758040268105,-400.0,0.0003041,6]
[385788101,1758040268115,-403.6202476,0.0003041,6]
[385788102,1758040268125,-401.41712629,0.0003041,6]
[385788103,1758040268134,-500.0,0.0003041,6]
[385788104,1758040268144,-400.0,0.0003041,6]
[385788105,1758040268154,-449.87,0.0003041,6]
[385788106,1758040268164,-400.0,0.0003041,6]
[385788107,1758040268174,-400.0,0.0003041,6]
[385788108,1758040268183,-459.34,0.0003041,6]
[385788109,1758040268193,-400.0,0.0003041,6]
[385788110,1758040268203,-400.0,0.0003041,6]
[385788111,1758040268212,-446.23,0.0003041,6]
[385788112,1758040268222,-400.0,0.0003041,6]
[385788113,1758040268232,-438.16,0.0003041,6]
[385788114,1758040268242,-400.0,0.0003041,6]
[385788115,1758040268252,-664.51,0.0003041,6]
[385788116,1758040268263,-400.0,0.0003041,6]
[385788117,1758040268273,-400.0,0.0003041,6]
[385788118,1758040268283,-400.0,0.0003041,6]
[385788119,1758040268294,-400.0,0.0003041,6]
[385788120,1758040268304,-400.0,0.0003041,6]
[385788121,1758040268314,-401.82601991,0.0003041,6]
[385788122,1758040268324,-400.0,0.0003041,6]
[385788123,1758040268334,-400.0,0.0003041,6]
[385788124,1758040268344,-400.0,0.0003041,6]
[385788125,1758040268354,-400.0,0.0003041,6]
[385788126,1758040268364,-400.0,0.0003041,6]
[385788127,1758040268374,-809.6,0.0003041,6]
[385788128,1758040268384,-400.0,0.0003041,6]
[385788129,1758040268394,-400.0,0.0003041,6]
[385788130,1758040268404,-400.0,0.0003041,6]
[385788131,1758040268415,-411.62,0.0003041,6]
[385788132,1758040268426,-498.09915212,0.0003041,6]
[385788133,1758040268436,-400.0,0.0003041,6]
[385788134,1758040268447,-757.42,0.0003041,6]
[385788135,1758040268457,-294.11836822,0.0003041,6]
[385788136,1758040268468,-400.0,0.0003041,6]
[385788137,1758040268481,-400.0,0.0003041,6]
[385788138,1758040268492,-648.06,0.0003041,6]
[385788139,1758040268503,-441.74,0.0003041,6]
[385788140,1758040268515,-400.0,0.0003041,6]
[385788141,1758040268526,-400.0,0.0003041,6]
[385788142,1758040268537,-401.97722145,0.0003041,6]
[385788143,1758040268548,-478.5,0.0003041,6]
[385788144,1758040268559,-408.29448047,0.0003041,6]
[385788145,1758040268570,-427.58,0.0003041,6]
[385788146,1758040268580,-400.0,0.0003041,6]
[385788147,1758040268591,-400.0,0.0003041,6]
[385788148,1758040268602,-406.69512995,0.0003041,6]
[385788149,1758040268614,-400.0,0.0003041,6]
[385788150,1758040268624,-400.0,0.0003041,6]
[385788151,1758040268635,-400.0,0.0003041,6]
[385788152,1758040268645,-400.0,0.0003041,6]
[385788153,1758040268655,-498.45,0.0003041,6]
[385788154,1758040268666,-400.0,0.0003041,6]
[385788155,1758040268676,-401.9777863,0.0003041,6]
[385788156,1758040268687,-1080.43,0.0003041,6]
[385788157,1758040268697,-919.47,0.0003041,6]
[385788158,1758040268707,-400.0,0.0003041,6]
[385788159,1758040268718,-507.5,0.0003041,6]
[385788160,1758040268730,-418.25,0.0003041,6]
[385788161,1758040268740,-400.0,0.0003041,6]
[385788162,1758040268750,-400.0,0.0003041,6]
[385788163,1758040268761,-400.0,0.0003041,6]
[385788164,1758040268771,-400.0,0.0003041,6]
[385788165,1758040268782,-400.0,0.0003041,6]
[385788166,1758040268793,-632.13,0.0003041,6]
[385788167,1758040268804,-400.0,0.0003041,6]
[385788168,1758040268814,-400.0,0.0003041,6]
[385788169,1758040268825,-409.8,0.0003041,6]
[385788170,1758040268836,-400.0,0.0003041,6]
[385788171,1758040268846,-666.16,0.0003041,6]
[385788172,1758040268857,-400.0,0.0003041,6]
[385788173,1758040268868,-441.12,0.0003041,6]
[385788174,1758040268878,-400.0,0.0003041,6]
[385788175,1758040268890,-400.0,0.0003041,6]
[385788176,1758040268900,-763.92,0.0003041,6]
[385788177,1758040268911,-400.0,0.0003041,6]
[385788178,1758040268922,-400.0,0.0003041,6]
[385788179,1758040268936,-400.0,0.0003041,6]
[385788180,1758040268956,-400.0,0.0003041,6]
[385788181,1758040268972,-576.52,0.0003041,6]
[385788182,1758040268993,-404.4486667,0.0003041,6]
[385788183,1758040269010,-400.0,0.0003041,6]
[385788184,1758040269027,-400.0,0.0003041,6]
[385788185,1758040269042,-400.0,0.0003041,6]
[385788186,1758040269055,-400.0,0.0003041,6]
[385788187,1758040269072,-400.0,0.0003041,6]
[385788188,1758040269088,-400.0,0.0003041,6]
[385788189,1758040269106,-400.0,0.0003041,6]
[385788190,1758040269121,-400.0,0.0003041,6]
[385788191,1758040269137,-400.0,0.0003041,6]
[385788192,1758040269152,-400.0,0.0003041,6]
[385788193,1758040269167,-400.0,0.0003041,6]
[385788194,1758040269184,-400.0,0.0003041,6]
[385788195,1758040269198,-400.0,0.0003041,6]
[385788196,1758040269211,-400.0,0.0003041,6]
[385788197,1758040269225,-400.0,0.0003041,6]
[385788198,1758040269241,-400.0,0.0003041,6]
[385788199,1758040269252,-400.0,0.0003041,6]
[385788200,1758040269267,-400.0,0.0003041,6]
[385788201,1758040269282,-400.0,0.0003041,6]
[385788202,1758040269293,-400.0,0.0003041,6]
[385788203,1758040269308,-400.0,0.0003041,6]
[385788204,1758040269323,-402.27,0.0003041,6]
[385788205,1758040269336,-780.88,0.0003041,6]
[385788206,1758040269349,-400.0,0.0003041,6]
[385788207,1758040269362,-292.20457825,0.0003041,6]
[385788208,1758040269375,-769.13,0.0003041,6]
[385788209,1758040269388,-403.07012591,0.0003041,6]
[385788210,1758040269403,-400.0,0.0003041,6]
[385788211,1758040269416,-458.91,0.0003041,6]
[385788212,1758040269430,-523.62,0.0003041,6]
[385788213,1758040269442,-400.0,0.0003041,6]
[385788214,1758040269455,-400.0,0.0003041,6]
[385788215,1758040269468,-400.0,0.0003041,6]
[385788216,1758040269482,-486.27,0.0003041,6]
[385788217,1758040269495,-300.97316633,0.0003041,6]
[385788218,1758040269508,-400.0,0.0003041,6]
[385788219,1758040269522,-400.0,0.0003041,6]
[385788220,1758040269535,-400.0,0.0003041,6]
[385788221,1758040269549,-400.0,0.0003041,6]
[385788222,1758040269562,-400.0,0.0003041,6]
[385788223,1758040269575,-400.0,0.0003041,6]
[385788224,1758040269588,-400.0,0.0003041,6]
[385788225,1758040269602,-397.65596221,0.0003041,6]
[385788226,1758040269615,-400.0,0.0003041,6]
[385788227,1758040269628,-468.37,0.0003041,6]
[385788228,1758040269640,-400.0,0.0003041,6]
[385788229,1758040269653,-400.0,0.0003041,6]
[385788230,1758040269666,-400.0,0.0003041,6]
[385788231,1758040269679,-400.0,0.0003041,6]
[385788232,1758040269692,-402.23290278,0.0003041,6]
[385788233,1758040269706,-305.83037457,0.0003041,6]
[385788234,1758040269719,-400.0,0.0003041,6]
[385788235,1758040269734,-400.0,0.0003041,6]
[385788236,1758040269747,-400.0,0.0003041,6]
[385788237,1758040269760,-400.0,0.0003041,6]
[385788238,1758040269773,-436.68,0.0003041,6]
[385788239,1758040269786,-400.0,0.0003041,6]
[385788240,1758040269799,-474.97,0.0003041,6]
[385788241,1758040269813,-400.0,0.0003041,6]
[385788242,1758040269826,-400.0,0.0003041,6]
[385788243,1758040269839,-405.78588919,0.0003041,6]
[385788244,1758040269851,-400.0,0.0003041,6]
[385788245,1758040269865,-620.99,0.0003041,6]
[385788246,1758040269879,-400.0,0.0003041,6]
[385788247,1758040269893,-400.0,0.0003041,6]
[385788248,1758040269907,-400.0,0.0003041,6]
[385788249,1758040269919,-400.0,0.0003041,6]
[385788250,1758040269933,-400.0,0.0003041,6]
[385788251,1758040269947,-211.43231283,0.0003041,6]
[385788252,1758040269967,-406.592791,0.0003041,6]
[385788253,1758040269983,-400.0,0.0003041,6]
[385788254,1758040269996,-400.0,0.0003041,6]
[385788255,1758040270010,-613.35,0.0003041,6]
[385788256,1758040270023,-400.0,0.0003041,6]
[385788257,1758040270036,-400.0,0.0003041,6]
[385788258,1758040270049,-400.0,0.0003041,6]
[385788259,1758040270061,-400.0,0.0003041,6]
[385788260,1758040270074,-400.0,0.0003041,6]
[385788261,1758040270087,-400.0,0.0003041,6]
[385788262,1758040270100,-400.0,0.0003041,6]
[385788263,1758040270113,-400.0,0.0003041,6]
[385788264,1758040270127,-400.0,0.0003041,6]
[385788265,1758040270140,-400.0,0.0003041,6]
[385788266,1758040270153,-400.0,0.0003041,6]
[385788267,1758040270165,-400.0,0.0003041,6]
[385788268,1758040270177,-400.0,0.0003041,6]
[385788269,1758040270190,-400.0,0.0003041,6]
[385788270,1758040270202,-400.0,0.0003041,6]
[385788271,1758040270215,-489.5,0.0003041,6]
[385788272,1758040270230,-504.14,0.0003041,6]
[385788273,1758040270242,-400.0,0.0003041,6]
[385788274,1758040270254,-601.78,0.0003041,6]
[385788275,1758040270267,-400.0,0.0003041,6]
[385788276,1758040270280,-400.0,0.0003041,6]
[385788277,1758040270295,-400.0,0.0003041,6]
[385788278,1758040270308,-401.55293721,0.0003041,6]
[385788279,1758040270320,-400.0,0.0003041,6]
[385788280,1758040270333,-400.0,0.0003041,6]
[385788281,1758040270345,-400.0,0.0003041,6]
[385788282,1758040270358,-813.7,0.0003041,6]
[385788283,1758040270370,-400.0,0.0003041,6]
[385788284,1758040270383,-400.0,0.0003041,6]
[385788285,1758040270395,-400.0,0.0003041,6]
[385788286,1758040270407,-400.0,0.0003041,6]
[385788287,1758040270420,-400.0,0.0003041,6]
[385788288,1758040270432,-400.53176072,0.0003041,6]
[385788289,1758040270445,-400.0,0.0003041,6]
[385788290,1758040270457,-400.0,0.0003041,6]
[385788291,1758040270469,-400.0,0.0003041,6]
[385788292,1758040270482,-400.0,0.0003041,6]
[385788293,1758040270494,-575.74,0.0003041,6]
[385788294,1758040270507,-400.0,0.0003041,6]
[385788295,1758040270520,-400.0,0.0003041,6]
[385788296,1758040270533,-400.0,0.0003041,6]
[385788297,1758040270545,-499.12,0.0003041,6]
[385788298,1758040270558,-400.0,0.0003041,6]
[385788299,1758040270570,-403.11592396,0.0003041,6]
[385788300,1758040270582,-400.0,0.0003041,6]
[385788301,1758040270595,-400.0,0.0003041,6]
[385788302,1758040270607,-400.0,0.0003041,6]
[385788303,1758040270620,-400.0,0.0003041,6]
[385788304,1758040270632,-400.0,0.0003041,6]
[385788305,1758040270644,-400.0,0.0003041,6]
[385788306,1758040270657,-400.0,0.0003041,6]
[385788307,1758040270669,-518.84,0.0003041,6]
[385788308,1758040270681,-938.77,0.0003041,6]
[385788309,1758040270693,-400.0,0.0003041,6]
[385788310,1758040270705,-400.0,0.0003041,6]
[385788311,1758040270717,-400.0,0.0003041,6]
[385788312,1758040270730,-405.70445466,0.0003041,6]
[385788313,1758040270743,-476.67,0.0003041,6]
[385788314,1758040270756,-400.0,0.0003041,6]
[385788315,1758040270769,-400.0,0.0003041,6]
[385788316,1758040270782,-400.0,0.0003041,6]
[385788317,1758040270795,-400.0,0.0003041,6]
[385788318,1758040270808,-400.0,0.0003041,6]
[385788319,1758040270821,-401.88432856,0.0003041,6]
[385788320,1758040270834,-400.0,0.0003041,6]
[385788321,1758040270847,-400.0,0.0003041,6]
[385788322,1758040270859,-400.0,0.0003041,6]
[385788323,1758040270872,-400.0,0.0003041,6]
[385788324,1758040270885,-400.0,0.0003041,6]
[385788325,1758040270897,-400.0,0.0003041,6]
[385788326,1758040270909,-400.0,0.0003041,6]
[385788327,1758040270922,-400.0,0.0003041,6]
[385788328,1758040270940,-400.0,0.0003041,6]
[385788329,1758040270956,-400.0,0.0003041,6]
[385788330,1758040270974,-400.0,0.0003041,6]
[385788331,1758040270990,-400.94253373,0.0003041,6]
[385788332,1758040271004,-400.0,0.0003041,6]
[385788333,1758040271020,-400.0,0.0003041,6]
[385788334,1758040271035,-754.15,0.0003041,6]
[385788335,1758040271051,-532.97,0.0003041,6]
[385788336,1758040271066,-400.0,0.0003041,6]
[385788337,1758040271080,-406.45754509,0.0003041,6]
[385788338,1758040271093,-400.0,0.0003041,6]
[385788339,1758040271108,-400.0,0.0003041,6]
[385788340,1758040271122,-400.0,0.0003041,6]
[385788341,1758040271135,-400.0,0.0003041,6]
[385788342,1758040271149,-1282.46,0.0003041,6]
[385788343,1758040271162,-572.92,0.0003041,6]
[385788344,1758040271177,-400.0,0.0003041,6]
[385788345,1758040271190,-400.0,0.0003041,6]
[385788346,1758040271203,-400.0,0.0003041,6]
[385788347,1758040271216,-513.38,0.0003041,6]
[385788348,1758040271230,-400.0,0.0003041,6]
[385788349,1758040271243,-400.0,0.0003041,6]
[385788350,1758040271256,-371.04712832,0.0003041,6]
[385788351,1758040271272,-582.28,0.0003041,6]
[385788352,1758040271286,-400.0,0.0003041,6]
[385788353,1758040271299,-688.46,0.0003041,6]
[385788354,1758040271312,-400.0,0.0003041,6]
[385788355,1758040271325,-1057.57,0.0003041,6]
[385788356,1758040271338,-1230.4,0.0003041,6]
[385788357,1758040271351,-442.29,0.0003041,6]
[385788358,1758040271364,-400.00008883,0.0003041,6]
[385788359,1758040271377,-400.0,0.0003041,6]
[385788360,1758040271389,-400.0,0.0003041,6]
[385788361,1758040271402,-402.41883467,0.0003041,6]
[385788362,1758040271416,-516.08,0.0003041,6]
[385788363,1758040271427,-2628.14,0.0003041,6]
[385788364,1758040271436,-400.0,0.0003041,6]
[385788365,1758040271446,-400.0,0.0003041,6]
[385788366,1758040271456,-400.0,0.0003041,6]
[385788367,1758040271466,-400.0,0.0003041,6]
[385788368,1758040271475,-718.79,0.0003041,6]
[385788369,1758040271486,-457.02,0.0003041,6]
[385788370,1758040271495,-400.0,0.0003041,6]
[385788371,1758040271504,-1329.08,0.0003041,6]
[385788372,1758040271514,-1000.0,0.0003041,6]
[385788373,1758040271523,-400.0,0.0003041,6]
[385788374,1758040271940,-1110.45,0.0003041,6]
[385788375,1758040271964,-400.0,0.0003041,6]
[385788376,1758040272001,-400.0,0.0003041,2]
[385788377,1758040272026,-400.0,0.0003041,6]
[385788378,1758040272037,-402.40854124,0.0003041,6]
[385788379,1758040272047,-2187.02,0.0003041,6]
[385788380,1758040272056,-401.37664728,0.0003041,6]
[385788381,1758040272066,-923.77,0.0003041,6]
[385788382,1758040272077,-3918.36,0.0003041,6]
[385788383,1758040272088,-490.7,0.0003041,6]
[385788384,1758040272097,-585.09,0.0003041,6]
[385788385,1758040272107,-400.0,0.0003041,6]
[385788386,1758040272116,-566.8,0.0003041,6]
[385788387,1758040272126,-400.0,0.0003041,6]
[385788388,1758040272135,-539.2,0.0003041,6]
[385788389,1758040272144,-400.0,0.0003041,6]
[385788390,1758040272154,-1401.36,0.0003041,6]
[385788391,1758040272163,-400.0,0.0003041,6]
[385788392,1758040272172,-1444.89,0.0003041,6]
[385788393,1758040272182,-400.0,0.0003041,6]
[385788394,1758040272191,-504.53,0.0003041,6]
[385788395,1758040272201,-400.0,0.0003041,6]
[385788396,1758040272210,-400.0,0.0003041,6]
[385788397,1758040272219,-400.0,0.0003041,6]
[385788398,1758040272229,-400.0,0.0003041,6]
[385788399,1758040272238,-400.0,0.0003041,6]
[385788400,1758040272248,-400.0,0.0003041,6]
[385788401,1758040272257,-400.0,0.0003041,6]
[385788402,1758040272266,-400.0,0.0003041,6]
[385788403,1758040272275,-1095.53,0.0003041,6]
[385788404,1758040272284,-499.17,0.0003041,6]
[385788405,1758040272293,-400.0,0.0003041,6]
[385788406,1758040272303,-400.0,0.0003041,6]
[385788407,1758040272312,-400.0,0.0003041,6]
[385788408,1758040272321,-1024.71,0.0003041,6]
[385788409,1758040272331,-401.54727546,0.0003041,6]
[385788410,1758040272344,-229.3634904,0.0003041,6]
[385788411,1758040272353,-2828.5,0.0003041,6]
[385788412,1758040272364,-400.0,0.0003041,6]
[385788413,1758040272374,-528.63,0.0003041,6]
[385788414,1758040272383,-300.0,0.0003041,6]
[385788415,1758040272394,-400.0,0.0003041,6]
[385788416,1758040272403,-400.0,0.0003041,6]
[385788417,1758040272412,-528.8,0.0003041,6]
[385788418,1758040272422,-2203.43,0.0003041,6]
[385788419,1758040272431,-400.0,0.0003041,6]
[385788420,1758040272439,-732.8,0.0003041,6]
[385788421,1758040272449,-400.0,0.0003041,6]
[385788422,1758040272459,-1032.12,0.0003041,6]
[385788423,1758040272468,-651.17,0.0003041,6]
[385788424,1758040272479,-401.42362693,0.0003041,6]
[385788425,1758040272488,-400.0,0.0003041,6]
[385788426,1758040272498,-401.78331322,0.0003041,6]
[385788427,1758040272508,-400.0,0.0003041,6]
[385788428,1758040272517,-743.48,0.0003041,6]
[385788429,1758040272527,-400.0,0.0003041,6]
[385788430,1758040272536,-536.07,0.0003041,6]
[385788431,1758040272545,-4745.11,0.0003041,6]
[385788432,1758040272554,-645.48,0.0003041,6]
[385788433,1758040272563,-400.0,0.0003041,6]
[385788434,1758040272572,-400.62548944,0.0003041,6]
[385788435,1758040272581,-400.0,0.0003041,6]